[Event "European Women-ch 2023"]
[Site "Petrovac"]
[Date "2023.03.27"]
[Round "9.17"]
[White "Hapala, Elisabeth"]
[Black "Bakalarz, Grazyna"]
[Result "1/2-1/2"]
[ECO "C42"]
[WhiteElo "2072"]
[BlackElo "1847"]
[Annotator "TA"]
[PlyCount "80"]
[EventDate "2023.03.15"]
[EventType "swiss"]
[EventCountry "MNE"]
[SourceTitle "playchess.com"]
[Source "ChessBase"]
[SourceQuality "1"]
[TimeControl "40/5400+30:1800+30"]

{[%evp 17,80,29,28,11,14,14,18,15,12,12,53,23,28,31,56,9,16,0,0,0,39,0,36,0,20,0,0,0,0,0,0,0,0,0,0,-103,-105,-112,-120,-119,-119,-123,-118,-124,-111,-265,-262,-256,-213,-286,-227,-242,-236,-237,-227,-234,-237,-238,-231,-222,-173,-221,-158,-178,-161]} 1. e4 {[%emt 0:00:03]} e5 {[%emt 0:00:08]} 2. Nf3 {[%emt 0:00:06]} Nf6 {[%emt 0:00:05]} 3. Nxe5 {[%emt 0:00:07]} d6 {[%emt 0:00:07]} 4. Nf3 {[%emt 0:00:04]} Nxe4 {[%emt 0:00:05]} 5. d4 {[%emt 0:00:18]} d5 {[%emt 0:00:18]} 6. Bd3 {[%emt 0:00:15]} Bf5 {[%emt 0:00:49]} 7. O-O {[%emt 0:03:30]} Be7 {[%emt 0:00:27]} 8. Re1 {[%emt 0:01:32]} O-O {[%emt 0:00:32]} 9. c4 {[%emt 0:00:56] 9.c4 was played by the boomers.} Nc6 {[%emt 0:03:04]} 10. Nc3 {[%emt 0:19:26] C42: Petroff Defence: 3 Nxe5 and unusual White 3rd moves.} (10. cxd5 {is interesting.} Qxd5 11. Nc3 Nxc3 12. bxc3 Rfe8 13. Bf4) 10... Nxc3 {[%emt 0:00:25]} 11. bxc3 {[%emt 0:00:05]} Bxd3 {[%emt 0:02:15]} 12. Qxd3 {[%emt 0:00:05] The position is equal.} dxc4 {[%emt 0:01:23]} 13. Qxc4 {[%emt 0:00:05]} Na5 {[%emt 0:01:37]} 14. Qa4 {[%emt 0:04:40]} b6 {[%emt 0:04:49] [#]} 15. Bf4 $146 {[%emt 0:03:31]} ({Predecessor:} 15. c4 Bf6 16. Bd2 Bxd4 17. Rad1 c5 18. Bxa5 bxa5 19. Nxd4 cxd4 20. c5 Rc8 21. Rxd4 {1-0 Breyther,R (2358)-Labahn,W (2220) Wichern op 5th 1999 (9.34)}) 15... Bd6 {[%emt 0:03:27]} 16. Be5 {[%emt 0:06:55]} (16. Bg5 $14 Qc8 17. c4) 16... Re8 {[%emt 0:26:03]} 17. Bxd6 {[%emt 0:10:30]} cxd6 {[%emt 0:00:42]} 18. d5 {[%emt 0:10:30]} Kf8 {[%emt 0:12:15]} 19. Qf4 {[%emt 0:11:23]} (19. Re4 {simplifies} Rxe4 20. Qxe4 g6 21. Re1) 19... Qd7 {[%emt 0:11:46]} 20. Ng5 {[%emt 0:00:43]} h6 {[%emt 0:02:59]} 21. Ne4 {[%emt 0:02:00]} Nb7 {[%emt 0:08:39]} 22. Re3 {[%emt 0:05:49][%cal Oe4f6] [#] Strongly threatening Nf6!} Re5 {[%emt 0:04:15]} 23. Rae1 {[%emt 0:06:13]} Qf5 {[%emt 0:01:22]} 24. Qxf5 {[%emt 0:04:09]} Rxf5 {[%emt 0:00:02]} 25. c4 {[%emt 0:00:06]} Rc8 {[%emt 0:02:04]} 26. Ng3 {[%emt 0:01:02]} (26. Kf1 $11) 26... Re5 $1 $17 {[%emt 0:00:40]} 27. Rxe5 {[%emt 0:04:59]} dxe5 {[%emt 0:00:06]} 28. Rxe5 {[%emt 0:01:31]} Rxc4 {[%emt 0:00:10][%mdl 4096] Endgame KRN-KRN} 29. Kf1 {[%emt 0:00:38]} Nd6 {[%emt 0:03:32]} 30. f3 {[%emt 0:02:35]} Rd4 {[%emt 0:01:56]} 31. Nf5 $2 {[%emt 0:01:30] [#] This move loses the game for White.} (31. Ke1 $17 {might work better.}) 31... Nxf5 $19 {[%emt 0:01:03]} 32. Rxf5 {[%emt 0:00:01] KR-KR} f6 {[%emt 0:01:14]} 33. Ke2 {[%emt 0:00:29]} Ke7 {[%emt 0:01:18] aiming for ...Ra4.} 34. d6+ {[%emt 0:01:01] Black is clearly better.} Kxd6 {[%emt 0:01:08]} ({Stronger than} 34... Rxd6 35. Rf4 $17) 35. Rb5 {[%emt 0:00:06]} Ra4 {[%emt 0:01:05] Repels a3} 36. Rb2 {[%emt 0:00:09]} Ra3 {[%emt 0:00:56]} 37. Kd2 {[%emt 0:01:17]} Kc5 {[%emt 0:01:00]} 38. Kc1 {[%emt 0:00:24]} b5 {[%emt 0:01:31]} 39. Rc2+ {[%emt 0:00:38]} (39. Re2 $142) 39... Kd6 {[%emt 0:00:26]} 40. Rd2+ {[%emt 0:00:00]} Ke6 {[%emt 0:00:00] Weighted Error Value: White=0.25 (precise) /Black=0.15 (very precise)} 1/2-1/2

[Event "European Women-ch 2023"]
[Site "Petrovac"]
[Date "2023.03.27"]
[Round "9.18"]
[White "Gaboyan, Susanna"]
[Black "Garcia Martin, Marta"]
[Result "1-0"]
[ECO "A05"]
[WhiteElo "2160"]
[BlackElo "2306"]
[Annotator "TA"]
[PlyCount "79"]
[EventDate "2023.03.15"]
[EventType "swiss"]
[EventCountry "MNE"]
[SourceTitle "playchess.com"]
[Source "ChessBase"]
[SourceQuality "1"]
[TimeControl "40/5400+30:1800+30"]

{[%evp 19,79,-31,0,-31,-11,-29,-7,-12,-25,-18,-20,-54,-37,-137,-90,-78,-62,-52,-66,-52,-56,-62,-53,-43,-48,-43,-24,-50,-37,-35,-41,-45,-34,-140,-112,-116,-120,-100,-9,-14,-8,-127,-87,-310,-184,-151,-41,-36,-31,-31,-41,-45,284,284,856,576,5227,1188,29985,29975,29990,29991]} 1. Nf3 {[%emt 0:00:02]} Nf6 {[%emt 0:02:22]} 2. g3 {[%emt 0:00:42]} b6 {[%emt 0:00:28]} 3. Bg2 {[%emt 0:00:06]} Bb7 {[%emt 0:00:05]} 4. O-O {[%emt 0:00:08]} e6 {[%emt 0:00:14]} 5. d3 {[%emt 0:01:32]} d5 {[%emt 0:00:23]} 6. Nbd2 {[%emt 0:00:18]} Be7 {[%emt 0:01:46]} 7. Qe1 {[%emt 0:00:28]} c5 {[%emt 0:01:30]} 8. e4 {[%emt 0:02:12]} Nc6 {[%emt 0:00:48]} 9. Qe2 {[%emt 0:01:19]} O-O {[%emt 0:01:30]} 10. c3 {[%emt 0:01:42]} b5 {[%emt 0:00:57]} 11. a3 {[%emt 0:03:09] A05: Réti Opening: 1 Nf3 Nf6.} a5 {[%emt 0:04:11]} 12. Re1 {[%emt 0:00:54]} b4 {[%emt 0:16:27]} 13. axb4 {[%emt 0:00:55] The position is equal.} axb4 {[%emt 0:02:16]} 14. Rxa8 {[%emt 0:00:15]} Qxa8 {[%emt 0:00:25] [#]} 15. e5 $146 {[%emt 0:01:10]} ({Predecessor:} 15. Nf1 dxe4 16. dxe4 Nxe4 17. Qc2 Nf6 18. Ne3 Rd8 19. h4 h6 20. Nd2 Na5 21. cxb4 cxb4 22. Qc7 {0-1 Viikmaa,K (1720)-Froewis,A (2077) Online Olym Div2 B rapid 2021 (5.4)}) 15... Nd7 {[%emt 0:00:14]} 16. d4 {[%emt 0:00:21]} (16. c4 $1 $15) 16... bxc3 {[%emt 0:21:01]} (16... Qa2 $142 17. Nf1 Ba6) 17. bxc3 $17 {[%emt 0:00:12]} cxd4 {[%emt 0:15:47]} 18. cxd4 {[%emt 0:00:12]} Nb4 {[%emt 0:01:22]} 19. Nf1 {[%emt 0:10:27]} Ba6 {[%emt 0:00:14]} 20. Qd1 {[%emt 0:01:29]} Nd3 {[%emt 0:07:58]} 21. Re3 {[%emt 0:00:42]} Rc8 {[%emt 0:00:15]} 22. Bd2 {[%emt 0:01:29]} Qc6 {[%emt 0:14:52]} 23. Qa1 {[%emt 0:04:29]} Bc4 {[%emt 0:06:08]} 24. Ne1 {[%emt 0:01:35]} Ra8 $36 {[%emt 0:00:17][%cal Bc8a8,Ba8a1,Ba1b1][%mdl 2080] Black has good play.} 25. Qd1 {[%emt 0:04:10]} Nb2 {[%emt 0:00:55]} (25... Nxe1 {simplifies} 26. Bxe1 Qa4 27. Qxa4 Rxa4 28. Bc3 Nb8) 26. Qh5 {[%emt 0:03:26]} (26. Qc1 $15 Na4 27. Rb3) 26... Ra1 {[%emt 0:00:33] Strongly threatening ...Nd1.} 27. Rf3 {[%emt 0:01:39]} g6 {[%emt 0:00:06]} 28. Qh6 {[%emt 0:00:06]} Nf8 {[%emt 0:00:54]} (28... Be2 $17 29. Rc3 Nc4) 29. Nc2 {[%emt 0:15:10]} Rb1 {[%emt 0:00:28]} (29... Rxf1+ $2 30. Bxf1 Bxf1 31. Qf4 $18) 30. Qf4 {[%emt 0:05:09]} (30. Nce3 $1 $11) 30... Qe8 {[%emt 0:00:03] White must now prevent ...Be2.} 31. h4 $2 {[%emt 0:05:41]} (31. Qh6 $17 {was necessary.}) 31... h5 {[%emt 0:00:18]} (31... Be2 $142 {And now ...Nc4 would win.} 32. Qe3 Qb5) 32. Na3 $19 {[%emt 0:09:08]} Bxa3 {[%emt 0:00:37]} (32... Rd1 $1 $17 {Threatens to win with ...Be2.} 33. Nxc4 Nxc4) 33. Rxa3 $15 {[%emt 0:00:08][%cal Bf3a3,Ba3a7,Ba7a8][%mdl 32]} Bxf1 {[%emt 0:00:10]} 34. Bxf1 {[%emt 0:02:23]} Qb5 {[%emt 0:00:12]} 35. Bc1 {[%emt 0:00:24]} Nc4 $2 {[%emt 0:01:39][%mdl 8192] [#]} (35... Qc6 $1 $15 {keeps the upper hand.} 36. Ra7 Nd7) 36. Ra7 $1 $18 {[%emt 0:00:32]} Nd7 $2 {[%emt 0:00:34]} (36... Qe8 37. Bd3 Rb3) 37. Qh6 {[%emt 0:04:37]} Qc6 {[%emt 0:00:27] [#] ...Ncb6 would be deadly.} 38. Bg5 $1 {[%emt 0:01:34][%cal Oa7d7] Rxd7! would kill now.} ({And not} 38. Bd3 Nd2 39. Qxd2 (39. Bxb1 $2 Qxc1+ 40. Kh2 Nf3+ {[%mdl 64] Discovered Attack} 41. Kg2 Ne1+ 42. Kg1 Qxh6 $19) 39... Qxc1+ 40. Qxc1 Rxc1+ 41. Kg2 Nb6 $11) 38... Nd2 {[%emt 0:00:27]} 39. Bxd2 {[%emt 0:00:30]} Qc4 {[%emt 0:00:33]} 40. Ra8+ {[%emt 0:00:00] Weighted Error Value: White=0.53/Black=0.56} 1-0

[Event "European Women-ch 2023"]
[Site "Petrovac"]
[Date "2023.03.27"]
[Round "9.18"]
[White "Slaba, Andrea"]
[Black "Gamal, Alaa"]
[Result "1/2-1/2"]
[ECO "A39"]
[WhiteElo "2061"]
[BlackElo "1748"]
[Annotator "TA"]
[PlyCount "123"]
[EventDate "2023.03.15"]
[EventType "swiss"]
[EventCountry "MNE"]
[SourceTitle "playchess.com"]
[Source "ChessBase"]
[SourceQuality "1"]
[TimeControl "40/5400+30:1800+30"]

{[%evp 18,123,54,33,51,17,49,-41,47,47,41,18,22,0,0,0,2,0,24,15,41,-35,-38,-61,-54,-105,-95,-109,-100,-93,-95,-134,-121,-121,-83,-77,-79,-83,-27,-39,-33,-35,0,-10,-18,-75,-24,-25,22,12,1,-67,-75,-70,46,51,58,67,239,239,247,20,165,147,167,159,150,158,149,128,146,140,135,140,153,95,100,99,137,76,76,76,76,76,83,76,91,-2,-7,-1,12,6,122,0,46,0,0,0,0,0,0,0,0,0,0,0,0,0]} 1. Nf3 {[%emt 0:00:02]} c5 {[%emt 0:00:09]} 2. g3 {[%emt 0:00:05]} g6 {[%emt 0:00:22]} 3. Bg2 {[%emt 0:00:06]} Nf6 {[%emt 0:01:26]} 4. O-O {[%emt 0:00:10]} Bg7 {[%emt 0:02:05]} 5. c4 {[%emt 0:01:08]} Nc6 {[%emt 0:00:00]} 6. d4 {[%emt 0:00:18]} cxd4 {[%emt 0:01:48]} 7. Nxd4 {[%emt 0:00:05]} O-O {[%emt 0:00:22]} 8. Nc3 {[%emt 0:00:56]} Qb6 {[%emt 0:02:58]} 9. Nc2 $1 {[%emt 0:01:14] 9.Nc2 scores better than 9.Nb3.} d6 {[%emt 0:01:57]} 10. Ne3 {[%emt 0:02:14]} Ne5 {[%emt 0:02:38] [#] A39: Symmetrical English vs ...g6: 4 Bg2 Bg7 5 Nf3 Nf6 6 0-0 0-0 7 d4.} 11. Ncd5 $146 {[%emt 0:02:08]} ({Predecessor:} 11. b3 Be6 12. Bb2 Rac8 13. Rb1 Bh6 14. Ncd5 Bxd5 15. Nxd5 Nxd5 16. Qxd5 Nc6 17. Rfd1 Bg7 18. Bxg7 Kxg7 {1-0 Tsuboi,E (2267)-Schwertner,J (1773) Sao Paulo Freitas op 2nd 2016 (1)}) 11... Qd8 {[%emt 0:02:10]} 12. f4 {[%emt 0:04:57]} ({White should play} 12. Nxf6+ $14 Bxf6 13. Rb1) 12... Nc6 {[%emt 0:06:56]} (12... Nxd5 $15 13. Qxd5 Ng4) 13. Nxf6+ $14 {[%emt 0:02:36]} Bxf6 {[%emt 0:00:23]} 14. Nd5 {[%emt 0:00:26]} Bg7 {[%emt 0:00:43]} 15. Kh1 {[%emt 0:01:33]} (15. e4 $5) 15... e6 {[%emt 0:05:29][%cal Be7e6,Be6d5,Bd5d4][%mdl 32]} 16. Ne3 {[%emt 0:03:05]} Qc7 {[%emt 0:04:02]} 17. Rb1 {[%emt 0:01:01]} Rd8 {[%emt 0:04:05]} 18. b3 {[%emt 0:00:42]} Qb6 {[%emt 0:00:26]} 19. Nc2 {[%emt 0:01:49] [#]} (19. Qd2 $14) 19... d5 $1 $15 {[%emt 0:05:32] Hoping for ...dxc4.} 20. cxd5 {[%emt 0:01:25]} (20. Qd3 dxc4) 20... exd5 {[%emt 0:02:30]} 21. Bb2 {[%emt 0:01:13]} (21. Ne3 $15) 21... d4 $1 $17 {[%emt 0:02:23]} 22. Na3 {[%emt 0:13:21]} Qa6 {[%emt 0:02:56]} 23. Nc4 {[%emt 0:06:19]} Be6 {[%emt 0:01:57]} 24. Rc1 {[%emt 0:06:34]} Rac8 {[%emt 0:10:00]} (24... Qxa2 $2 25. Ra1 $18) 25. a4 {[%emt 0:04:16]} b5 {[%emt 0:02:32]} 26. axb5 {[%emt 0:01:27]} Qxb5 {[%emt 0:00:25]} 27. Ba3 {[%emt 0:00:30]} Bd5 {[%emt 0:11:51]} (27... Qb8 $17) 28. Bxd5 $11 {[%emt 0:02:27]} Qxd5+ {[%emt 0:00:33]} 29. Kg1 {[%emt 0:02:56]} Na5 {[%emt 0:02:35][%cal Ra5c4]} 30. Qd3 {[%emt 0:05:51]} Nxc4 {[%emt 0:03:25]} 31. bxc4 {[%emt 0:00:02]} (31. Rxc4 $11 Qe6 32. Bc5) 31... Qh5 {[%emt 0:00:33]} (31... Qc6 $17) 32. Rf3 {[%emt 0:03:29]} Rb8 {[%emt 0:01:00]} (32... Re8 $142) 33. c5 {[%emt 0:01:55]} Qd5 {[%emt 0:00:29]} 34. Qc4 {[%emt 0:02:19]} (34. c6 $11 Rdc8 35. Rc5) 34... Qc6 $1 $15 {[%emt 0:01:01]} 35. f5 {[%emt 0:02:10]} Bh6 {[%emt 0:00:23]} ({Black should try} 35... gxf5 $15 36. Rcf1 (36. Rxf5 d3 $15) 36... Qe6) 36. fxg6 $1 $14 {[%emt 0:02:50]} Qxg6 {[%emt 0:01:45]} 37. Rcf1 $36 {[%emt 0:00:53][%cal Rf3f7][%mdl 2048] Black is under pressure.} Be3+ $2 {[%emt 0:00:56]} (37... Qe6 $1 $14 38. Qxe6 fxe6) 38. Kg2 $18 {[%emt 0:00:10][%cal Rf3f7]} Rb7 {[%emt 0:04:03]} 39. Bc1 $2 {[%emt 0:09:13]} (39. c6 $1 $18 {[%cal Rc6b7]} Rc7 40. Rf6 Qe4+ 41. R1f3) 39... Re8 {[%emt 0:03:10] [#]} (39... Bxc1 $11 40. Qxc1 (40. c6 Rc7 $11) 40... Rc7) 40. Bxe3 $1 {[%emt 0:00:00]} dxe3 {[%emt 0:00:00]} 41. Rf4 {[%emt 0:04:51]} Qc6+ {[%emt 0:07:47]} 42. Kg1 {[%emt 0:00:15]} Re6 {[%emt 0:00:43]} 43. Qd4 {[%emt 0:02:17]} Rbe7 {[%emt 0:04:00]} 44. Qd8+ {[%emt 0:04:33]} Re8 {[%emt 0:00:31]} 45. Qg5+ {[%emt 0:00:14]} Rg6 {[%emt 0:00:49]} 46. Qh5 {[%emt 0:02:37] Chess con chili.} ({Better is} 46. Qh4 Rg7 47. Rf5) 46... Re7 $16 {[%emt 0:01:29]} 47. Qf5 {[%emt 0:04:58]} (47. Rf5 {looks sharper.} Qe4 48. R1f4 Qb1+ 49. Kg2) 47... Qe6 {[%emt 0:02:47]} 48. Rd1 {[%emt 0:04:05]} (48. Qd3 $142) 48... Qxf5 {[%emt 0:04:14]} 49. Rxf5 {[%emt 0:00:01][%mdl 4096] Endgame KRR-KRR} Kg7 {[%emt 0:00:51]} 50. Kg2 {[%emt 0:00:32]} Rc6 {[%emt 0:00:03]} 51. Kf3 {[%emt 0:00:24]} Kg6 {[%emt 0:00:26]} 52. Rfd5 {[%emt 0:00:47]} (52. Rdd5 $16) 52... Rf6+ $11 {[%emt 0:00:38]} 53. Kg4 {[%emt 0:00:28]} Re4+ {[%emt 0:00:36]} 54. Kh3 {[%emt 0:00:09]} Rf2 {[%emt 0:00:13] [#]} (54... Ree6 $11 {keeps the balance.}) 55. Rd6+ {[%emt 0:08:08]} (55. Rc1 $1 $16 Rf5 56. Rd7 Rh5+ 57. Kg2) 55... Kg5 {[%emt 0:01:40]} (55... Kg7 $11) 56. c6 {[%emt 0:02:53]} (56. Rc1 $14 {feels stronger.} Rxe2 57. Rd5+ f5 58. c6) 56... Rc4 {[%emt 0:02:25] The position is equal.} 57. R1d5+ {[%emt 0:02:51]} f5 {[%emt 0:01:50]} 58. Re5 {[%emt 0:02:48] Strongly threatening Re7.} Rxe2 {[%emt 0:00:11] Threatens to win with ...Rcc2.} 59. Re7 {[%emt 0:00:34][%csl LRa7,LRh7] Threatening mate with Rg7+.} Rcc2 {[%emt 0:01:02][%csl Gc2][%cal Re2h2]} 60. Rg7+ {[%emt 0:00:17]} Kh5 {[%emt 0:00:48][%csl Gc2][%cal Re2h2]} 61. Rxh7+ {[%emt 0:00:30]} Kg5 {[%emt 0:00:01][%csl Gc2][%cal Re2h2]} 62. Rg7+ {[%emt 0:00:29] White really could win this.   Weighted Error Value: White=0.24 (precise) /Black=0.29 (precise)} 1/2-1/2

[Event "European Women-ch 2023"]
[Site "Petrovac"]
[Date "2023.03.27"]
[Round "9.19"]
[White "Zimina, Olga"]
[Black "Ivekovic, Tihana"]
[Result "1-0"]
[ECO "C00"]
[WhiteElo "2295"]
[BlackElo "2132"]
[Annotator "TA"]
[PlyCount "131"]
[EventDate "2023.03.15"]
[EventType "swiss"]
[EventCountry "MNE"]
[SourceTitle "playchess.com"]
[Source "ChessBase"]
[SourceQuality "1"]
[TimeControl "40/5400+30:1800+30"]

{[%evp 22,131,-43,-49,-36,-50,0,0,0,-77,-23,-81,-88,-84,-76,-89,-74,-85,-56,-61,-38,-50,-34,-39,-52,-50,-39,-43,-12,-29,-12,-32,-29,-46,14,13,11,0,0,0,47,31,26,33,75,62,92,96,86,65,68,41,52,2,3,9,55,55,55,55,55,55,55,55,168,59,60,55,55,55,55,55,59,59,59,59,106,106,212,218,196,254,182,178,182,182,281,112,416,416,416,112,112,112,112,112,112,112,29971,29972,29972,29973,29973,29974,29974,29975,29966,29967,29966,29956,29988,29989]} 1. Nf3 {[%emt 0:00:06]} Nf6 {[%emt 0:00:06]} 2. g3 {[%emt 0:00:10]} d5 {[%emt 0:00:05]} 3. Bg2 {[%emt 0:00:04]} e6 {[%emt 0:00:04]} 4. O-O {[%emt 0:00:04]} Be7 {[%emt 0:00:04]} 5. d3 {[%emt 0:00:11]} O-O {[%emt 0:00:10]} 6. Nbd2 {[%emt 0:00:03][%cal Bb1d2,Bd2f1,Bf1e3][%mdl 32]} c5 {[%emt 0:00:50]} 7. e4 {[%emt 0:00:23]} Nc6 {[%emt 0:00:28]} 8. e5 {[%emt 0:00:31]} Nd7 {[%emt 0:00:05]} 9. Re1 {[%emt 0:00:06]} Qc7 {[%emt 0:00:08]} 10. Qe2 {[%emt 0:00:06]} b5 {[%emt 0:01:07]} 11. Nf1 {[%emt 0:00:15]} Bb7 {[%emt 0:01:34]} 12. h4 {[%emt 0:00:13]} h6 {[%emt 0:02:24] C00: French: Unusual White 2nd moves.} 13. Bf4 {[%emt 0:02:18]} Rfd8 {[%emt 0:01:50] [#]} (13... Rfb8 $15) 14. Ne3 $146 {[%emt 0:04:40]} ({Predecessor:} 14. h5 d4 15. a4 a6 16. N1d2 Nb4 17. Ne4 Bxe4 18. dxe4 Nc6 19. axb5 axb5 20. Qxb5 {0-1 Dos Santos,W (2466)-Santos,E (2015) RPD Confinados do Caraibeiras op 1st 2020 (3)}) 14... Bf8 {[%emt 0:09:58] The position is equal.} ({Don't play} 14... Ndxe5 15. Nxe5 Nxe5 16. Ng4 $16) 15. Bh3 {[%emt 0:06:04]} (15. Nxd5 $11 {keeps the balance.} exd5 16. e6) 15... Ne7 {[%emt 0:01:48]} (15... Ndxe5 $2 16. Nxe5 Nxe5 17. Ng4 $18) (15... d4 $17 16. Ng4 Nb4) 16. h5 {[%emt 0:00:59]} (16. c3 $1 $11) 16... d4 $17 {[%emt 0:11:39]} 17. Ng4 {[%emt 0:01:04][%cal Og4f6]} Nd5 {[%emt 0:00:17] Repels Nf6+} 18. Bd2 {[%emt 0:00:16]} Rac8 {[%emt 0:01:19]} 19. Bg2 {[%emt 0:00:55]} N7b6 {[%emt 0:10:05]} 20. Ba5 {[%emt 0:02:52]} Ne7 {[%emt 0:03:32]} 21. a4 {[%emt 0:04:32]} a6 {[%emt 0:03:54]} 22. axb5 {[%emt 0:05:38]} axb5 {[%emt 0:00:25]} 23. Nd2 {[%emt 0:02:52]} Bxg2 {[%emt 0:03:04]} 24. Kxg2 {[%emt 0:04:03]} Qb7+ {[%emt 0:01:02]} 25. Ne4 {[%emt 0:00:44] Active counter play!} Ned5 {[%emt 0:00:11]} (25... Qc6 {looks sharper.} 26. Qf3 Rc7 27. Rec1 Rb8) 26. c3 {[%emt 0:08:48]} Rd7 {[%emt 0:06:18]} 27. Qf3 {[%emt 0:02:29]} c4 {[%emt 0:11:34]} (27... Be7 $15) 28. cxd4 $11 {[%emt 0:02:14]} cxd3 {[%emt 0:00:29]} 29. Bxb6 {[%emt 0:04:26]} ({Of course not} 29. Qxd3 Bb4 $15) 29... Qxb6 {[%emt 0:01:55]} 30. Qxd3 {[%emt 0:00:12]} Rdc7 {[%emt 0:01:22]} (30... Rc4 $11 {was preferrable.}) 31. Re2 {[%emt 0:01:10]} Rc4 {[%emt 0:01:45]} 32. Rd1 {[%emt 0:00:06]} Qc6 {[%emt 0:01:18]} 33. Kh2 {[%emt 0:06:02]} (33. Qf3 {is interesting.} Rb4 34. Rd3 Ra4 35. Ne3) 33... Bb4 {[%emt 0:02:47]} 34. Ne3 {[%emt 0:01:08]} Nxe3 {[%emt 0:00:57]} 35. Qxe3 {[%emt 0:03:04]} Qd5 {[%emt 0:11:14]} 36. g4 {[%emt 0:01:20] Black must now prevent g5.} Rd8 {[%emt 0:02:16][%cal Rc4d4]} 37. Nc3 {[%emt 0:02:02]} (37. g5 $14 Rxd4 38. Qg3 hxg5 39. Rxd4 Qxd4 40. Qxg5) 37... Bxc3 $1 {[%emt 0:04:57]} 38. bxc3 {[%emt 0:00:01] Threatening g5.} b4 {[%emt 0:01:55]} (38... Ra8 $1 $11 {feels stronger.}) 39. cxb4 $14 {[%emt 0:00:22]} Rxb4 {[%emt 0:00:13]} 40. Red2 $1 {[%emt 0:00:00]} Rb3 {[%emt 0:00:00]} 41. Rd3 {[%emt 0:00:26]} Rb2 {[%emt 0:02:58]} 42. Kg3 {[%emt 0:01:59]} Qa2 {[%emt 0:08:51]} (42... Qb7 $14) 43. Ra3 {[%emt 0:01:56]} (43. g5 $1 $18 {[%cal Rg5h6]} Kh7 44. Qf4) 43... Qc4 {[%emt 0:00:36]} 44. Qd3 {[%emt 0:05:52]} (44. Qc3 {is more complex.} Qe2 45. Qf3 Qc4 46. Rc3) 44... Qb4 {[%emt 0:01:09]} 45. Qc3 {[%emt 0:04:52]} Qb6 {[%emt 0:00:58]} 46. Qe3 {[%emt 0:01:38]} Qb5 {[%emt 0:02:08]} 47. Qf3 {[%emt 0:04:19]} Qb6 {[%emt 0:05:11]} 48. Ra8 {[%emt 0:02:31]} Rxa8 {[%emt 0:01:40]} (48... Rb4 $14) 49. Qxa8+ {[%emt 0:01:02][%mdl 4096] Endgame KQR-KQR} Qb8 {[%emt 0:00:01]} (49... Kh7 $16) 50. Ra1 $18 {[%emt 0:04:53]} Qxa8 {[%emt 0:01:37]} 51. Rxa8+ {[%emt 0:00:03] KR-KR} Kh7 {[%emt 0:00:05]} 52. Rf8 {[%emt 0:01:08]} Rb7 {[%emt 0:00:05]} 53. f4 $1 {[%emt 0:09:23] f5 would be deadly.} Rd7 {[%emt 0:01:04]} (53... g6 $142 54. hxg6+ Kxg6) 54. f5 $2 {[%emt 0:02:53]} (54. Kf3 $1 $18 {is the precise move to win.}) 54... exf5 $2 {[%emt 0:00:06][%mdl 8192]} (54... Rxd4 $16 55. Rxf7 exf5) 55. gxf5 {[%emt 0:00:13]} Rxd4 {[%emt 0:00:05] [#]} 56. Rxf7 $2 {[%emt 0:00:16]} (56. Kf3 $1 $18) 56... Kg8 $16 {[%emt 0:00:07]} 57. e6 {[%emt 0:15:46] Intending Rd7 and mate.} Re4 {[%emt 0:00:08]} 58. Kf3 {[%emt 0:00:32]} Re1 {[%emt 0:00:35]} 59. Kf4 {[%emt 0:02:38]} Rf1+ $2 {[%emt 0:11:09][%mdl 8192]} (59... Re2 $16 60. Rc7 Kf8 61. Rf7+ Kg8) 60. Ke5 {[%emt 0:00:09] White mates.} Ra1 {[%emt 0:00:04]} 61. Rc7 {[%emt 0:05:39]} Kf8 {[%emt 0:00:32]} 62. Kd6 {[%emt 0:00:34][%cal Rc7c8]} Rd1+ {[%emt 0:00:30] [#]} 63. Kc6 $1 {[%emt 0:00:05]} Rc1+ {[%emt 0:04:49]} 64. Kd7 {[%emt 0:00:05]} Rd1+ {[%emt 0:00:04]} 65. Kc8 {[%emt 0:00:15]} Rf1 {[%emt 0:00:40]} 66. Kd8 {[%emt 0:00:19] Weighted Error Value: White=0.18 (very precise) /Black=0.37} 1-0